bitfinex-derivatives/quotes_BNBF0:USTF0_20250810
["timestamp","ask_amount","ask_price","bid_price","bid_amount"]
[1754784835609,0.21687378,803.34,802.24,2.77669547]
[1754784836313,0.21687378,803.34,802.19,2.77669547]
[1754784836613,0.21687378,803.34,802.25,2.77669547]
[1754784837813,0.21687378,803.34,802.24,2.77669547]
[1754784839714,0.21687378,803.34,802.27,2.77669547]
[1754784840812,0.21687378,803.34,802.22,2.77669547]
[1754784841311,0.21687378,803.34,802.19,2.77669547]
[1754784841914,0.21687378,803.34,801.93,2.77669547]
[1754784842511,0.21687378,803.34,801.87,2.77669547]
[1754784844417,0.21687378,803.34,801.88,2.77669547]
[1754784844921,0.21687378,803.34,801.91,2.77669547]
[1754784845518,0.21687378,803.34,801.9,2.77669547]
[1754784846220,0.21687378,803.34,801.91,2.77669547]
[1754784846520,0.21687378,803.34,801.92,2.77669547]
[1754784849119,0.21687378,803.34,801.93,2.77669547]
[1754784849724,0.21687378,803.34,801.95,2.77669547]
[1754784850221,0.21687378,803.34,801.96,2.77669547]
[1754784851325,0.21687378,803.34,801.9,2.77669547]
[1754784851826,0.21687378,803.34,802.08,2.77669547]
[1754784852727,0.21687378,803.34,801.64,3.90467757]
[1754784853328,0.21687378,803.34,801.62,2.77669547]
[1754784854224,0.21687378,803.34,801.63,2.77669547]
[1754784855825,0.21687378,803.34,801.64,2.77669547]
[1754784858531,0.21687378,803.34,801.65,2.77669547]
[1754784859432,0.21687378,803.34,801.69,2.77669547]
[1754784861030,0.21687378,803.34,801.72,2.77669547]
[1754784862536,0.21687378,803.34,802.29,2.77669547]
[1754784864137,0.21687378,803.34,802.23,2.77669547]
[1754784864637,0.21687378,803.34,802.24,2.77669547]
[1754784865131,0.21687378,803.34,802.26,2.77669547]
[1754784865731,0.21687378,803.34,802.29,2.77669547]
[1754784866234,0.21687378,803.34,802.18,2.77669547]
[1754784867337,0.21687378,803.34,802.19,2.77669547]
[1754784867738,0.21687378,803.34,802.55,2.77669547]
[1754784869343,0.21687378,803.34,802.56,2.77669547]
[1754784870542,0.21687378,803.34,802.57,2.77669547]
[1754784870845,0.21687378,803.34,802.23,3.90467757]
[1754784870846,0.21687378,803.34,802.58,2.77669547]
[1754784871347,0.21687378,803.34,802.36,2.77669547]
[1754784872446,0.21687378,803.34,802.37,2.77669547]
[1754784874048,0.21687378,803.34,802.38,2.77669547]
[1754784874643,0.21687378,803.34,802.39,2.77669547]
[1754784875543,0.21687378,803.34,802.29,2.77669547]
[1754784876145,0.21687378,803.34,802.33,2.77669547]
[1754784876648,0.21687378,803.34,802.34,2.77669547]
[1754784878645,0.21687378,803.34,802.33,2.77669547]
[1754784880251,0.21687378,803.34,802.34,2.77669547]
[1754784880947,0.21687378,803.34,802.4,2.77669547]
[1754784881451,0.21687378,803.34,802.3,2.77669547]
[1754784883953,0.21687378,803.34,802.31,2.77669547]
[1754784884553,0.21687378,803.34,802.3,2.77669547]
[1754784885654,0.21687378,803.34,802.38,2.77669547]
[1754784887056,0.21687378,803.34,802.4,2.77669547]
[1754784887755,0.21687378,803.34,802.45,2.77669547]
[1754784888152,0.21687378,803.34,802.49,2.77669547]
[1754784889152,0.21687378,803.34,802.5,2.77669547]
[1754784889756,0.21687378,803.34,802.58,2.77669547]
[1754784890257,0.21687378,803.34,802.74,2.77669547]
[1754784890656,0.21687378,803.34,802.75,2.77669547]
[1754784891255,0.21687378,803.34,802.71,2.77669547]
[1754784891758,0.21687378,803.34,802.7,2.77669547]
[1754784892259,0.21687378,803.34,802.71,2.77669547]
[1754784893860,0.21687378,803.34,802.7,2.77669547]
[1754784894358,0.21687378,803.34,802.69,2.77669547]
[1754784894962,0.21687378,803.34,802.72,2.77669547]
[1754784895453,0.21687378,803.34,802.71,2.77669547]
[1754784896556,0.21687378,803.34,802.7,2.77669547]
[1754784896959,0.21687378,803.34,802.71,2.77669547]
[1754784897560,0.21687378,803.34,802.7,2.77669547]
[1754784898560,0.21687378,803.34,802.69,2.77669547]
[1754784899958,0.21687378,803.34,802.75,2.77669547]
[1754784900464,0.05782122,803.34,802.75,2.77669547]
[1754784900761,0.5,803.66,802.87,2.77669547]
[1754784901664,0.5,803.66,802.86,2.77669547]
[1754784902162,0.5,803.66,802.85,2.77669547]
[1754784903263,0.5,803.66,802.57,3.90467757]
[1754784903565,0.5,803.66,801.64,3.051]
[1754784903760,0.2168927,803.39,801.64,3.051]
[1754784904668,0.2168927,803.39,801.94,3.90467757]
[1754784905065,0.295,803.36,801.94,3.90467757]
[1754784905769,0.295,803.37,801.98,3.90467757]
[1754784905965,0.2168927,803.39,801.98,3.90467757]
[1754784906667,0.2168927,803.39,801.71,3.90467757]
[1754784909772,0.2168927,803.39,801.7,3.90467757]
[1754784910067,0.298,803.37,801.7,3.90467757]
[1754784910275,0.298,803.27,801.7,3.90467757]
[1754784911073,0.298,803.27,801.74,3.90467757]
[1754784911874,0.298,803.27,801.64,3.051]
[1754784912270,0.298,803.27,801.96,2.77883695]
[1754784913279,0.426,803.29,801.97,2.77883695]
[1754784913478,0.298,803.27,801.97,2.77883695]
[1754784913878,0.298,803.27,801.92,2.77883695]
[1754784914080,0.5,803.3,801.92,2.77883695]
[1754784914981,0.5,803.3,801.94,2.77883695]
[1754784915580,0.5,803.3,801.92,2.77883695]
[1754784915981,0.5,803.3,801.96,2.77883695]
[1754784916481,0.5,803.3,801.95,2.77883695]
[1754784916981,0.299,803.23,802.04,2.77883695]
[1754784917481,0.5,803.21,801.97,2.77883695]
[1754784917881,0.5,803.21,801.92,2.77883695]
[1754784918482,0.5,803.21,801.89,2.77883695]
[1754784919383,0.5,803.21,801.86,2.77883695]
[1754784919583,0.299,803.1,801.86,2.77883695]
[1754784919979,0.5,803.21,801.86,2.77883695]
[1754784920281,0.299,803.18,801.86,2.77883695]
[1754784920581,0.299,803.18,801.84,2.77883695]
[1754784920985,0.299,803.18,801.85,2.77883695]
[1754784921485,0.299,803.18,801.83,2.77883695]
[1754784922483,0.299,803.18,801.81,2.77883695]
[1754784923689,0.299,803.18,801.79,2.77883695]
[1754784924089,0.299,803.18,801.88,2.77883695]
[1754784924484,0.5,803.09,801.64,2.77883695]
[1754784925485,0.41,803.09,801.66,2.77883695]
[1754784925688,0.299,803.09,801.66,2.77883695]
[1754784926189,0.299,803.18,801.72,2.77883695]
[1754784926588,0.299,803.18,801.77,2.77883695]
[1754784927592,0.299,803.18,801.87,2.77883695]
[1754784927992,0.299,803.18,801.81,2.77883695]
[1754784928594,0.299,803.18,801.8,2.77883695]
[1754784929595,0.299,803.18,801.59,2.77883695]
[1754784929795,0.297,803.07,801.59,2.77883695]
[1754784930094,0.297,803.07,801.58,2.77883695]
[1754784930794,0.297,803.13,801.6,2.77883695]
[1754784931196,0.297,803.13,801.46,2.77883695]
[1754784931698,0.297,803.13,801.29,4.188]
[1754784935497,0.5,803.21,801.29,4.188]
[1754784938498,0.5,803.21,800.94,2.77883695]
[1754784939503,0.5,803.21,801.01,2.77883695]
[1754784940104,0.5,803.21,801.28,2.77883695]
[1754784940506,0.5,803.21,801.29,2.77883695]
[1754784941005,0.5,803.22,801.71,2.77883695]
[1754784941702,0.5,803.22,801.67,2.77883695]
[1754784942801,0.5,803.22,801.71,2.77883695]
[1754784943902,0.5,803.22,801.7,2.77883695]
[1754784946808,0.5,803.22,801.69,2.77883695]
[1754784947311,0.5,803.22,801.7,2.77883695]
[1754784948410,0.5,803.22,801.71,2.77883695]
[1754784948910,0.5,803.22,801.7,2.77883695]
[1754784950513,0.5,803.22,802.01,2.77883695]
[1754784950912,0.5,803.22,801.74,2.77883695]
[1754784951510,0.5,803.22,801.76,2.77883695]
[1754784952011,0.5,803.22,801.78,2.77883695]
[1754784952512,0.5,803.22,801.79,2.77883695]
[1754784953108,0.5,803.22,801.8,2.77883695]
[1754784953612,0.5,803.22,801.83,2.77883695]
[1754784954209,0.5,803.22,801.82,2.77883695]
[1754784954613,0.5,803.22,801.86,2.77883695]
[1754784955616,0.5,803.22,801.89,2.77883695]
[1754784956417,0.5,803.22,801.86,2.77883695]
[1754784956717,0.5,803.22,801.91,2.77883695]
[1754784957317,0.5,803.22,801.9,2.77883695]
[1754784957818,0.5,803.22,801.91,2.77883695]
[1754784958217,0.5,803.22,801.92,2.77883695]
[1754784958715,0.5,803.22,801.94,2.77883695]
[1754784959413,0.5,803.22,802.0,2.77883695]
[1754784959815,0.5,803.1,801.9,2.77883695]
[1754784960118,0.5,803.22,801.9,2.77883695]
[1754784960316,0.5,803.22,801.53,3.90467757]
[1754784960615,0.297,803.28,801.53,3.90467757]
[1754784960919,0.297,803.28,801.3,3.255]
[1754784962716,0.5,803.29,801.3,3.255]
[1754784963422,0.5,803.29,801.3,6.03383695]
[1754784963921,0.5,803.29,801.3,3.255]
[1754784966618,0.5,803.29,801.84,2.77883695]
[1754784968724,0.5,803.29,801.85,2.77883695]
[1754784969122,0.5,803.29,801.89,2.77883695]
[1754784970126,0.5,803.37,801.89,2.77883695]
[1754784970326,0.5,803.37,801.92,2.77883695]
[1754784970828,0.5,803.37,801.95,2.77883695]
[1754784971226,0.5,803.37,802.41,2.77883695]
[1754784972931,0.5,803.37,802.4,2.77883695]
[1754784975431,0.5,803.37,802.38,2.77883695]
[1754784975931,0.5,803.37,802.29,2.77883695]
[1754784976529,0.5,803.37,802.3,2.77883695]
[1754784977834,0.295,803.48,802.3,2.77883695]
[1754784978035,0.5,803.5,802.34,2.77883695]
[1754784979535,0.5,803.5,802.33,2.77883695]
[1754784980436,0.21691433,803.21,802.33,2.77883695]
[1754784981136,0.21691433,803.21,802.44,2.77883695]
[1754784981537,0.21691433,803.21,802.43,2.77883695]
[1754784982739,0.21691433,803.21,802.42,2.77883695]
[1754784983841,0.21691433,803.21,802.38,2.77883695]
[1754784984236,0.21691433,803.21,802.4,2.77883695]
[1754784984637,0.21691433,803.21,802.38,2.77883695]
[1754784985243,0.21691433,803.21,802.39,2.77883695]
[1754784985741,0.21691433,803.21,802.38,2.77883695]
[1754784986339,0.21691433,803.21,802.28,2.77883695]
[1754784987841,0.21691433,803.21,802.31,2.77883695]
[1754784988343,0.21691433,803.21,802.25,2.77883695]
[1754784990446,0.21691433,803.21,802.26,2.77883695]
[1754784992943,0.21691433,803.21,802.27,2.77883695]
[1754784993544,0.21691433,803.21,802.28,2.77883695]
[1754784994049,0.21691433,803.21,802.3,2.77883695]
[1754784995647,0.21691433,803.21,802.32,2.77883695]
[1754784996047,0.21691433,803.21,802.31,2.77883695]
[1754784997651,0.21691433,803.21,802.32,2.77883695]
[1754784998155,0.21691433,803.21,802.1,2.77883695]
[1754784998756,0.21691433,803.21,802.11,2.77883695]
[1754785001755,0.21691433,803.21,802.15,2.77883695]
[1754785002360,0.21691433,803.21,802.16,2.77883695]
[1754785002859,0.21691433,803.21,802.15,2.77883695]
[1754785003460,0.21691433,803.21,802.16,2.77883695]
[1754785004055,0.21691433,803.21,802.44,2.77883695]
[1754785005560,0.21691433,803.21,802.45,2.77883695]
[1754785006061,0.21691433,803.21,802.37,2.77883695]
[1754785008061,0.21691433,803.21,802.36,2.77883695]
[1754785010165,0.21691433,803.21,802.29,2.77883695]
[1754785010763,0.21691433,803.21,802.25,2.77883695]
[1754785011266,0.21691433,803.21,802.31,2.77883695]
[1754785011665,0.21691433,803.21,802.32,2.77883695]
[1754785012763,0.21691433,803.21,802.33,2.77883695]
[1754785013865,0.21691433,803.21,802.37,2.77883695]
[1754785014368,0.21691433,803.21,802.38,2.77883695]
[1754785014969,0.21691433,803.21,802.4,2.77883695]
[1754785016065,0.21691433,803.21,802.43,2.77883695]
[1754785016469,0.21691433,803.21,802.48,2.77883695]
[1754785017569,0.21691433,803.21,802.49,2.77883695]
[1754785017970,0.21691433,803.21,802.5,2.77883695]
[1754785019469,0.21691433,803.21,802.51,2.77883695]
[1754785020668,0.21691433,803.21,802.47,2.77883695]
[1754785021069,0.21691433,803.21,802.48,2.77883695]
[1754785021670,0.21691433,803.21,802.49,2.77883695]
[1754785024177,0.21691433,803.21,802.48,2.77883695]
[1754785024678,0.21691433,803.21,802.49,2.77883695]
[1754785025980,0.21691433,803.21,802.69,2.77883695]
[1754785026379,0.21691433,803.21,802.49,2.77883695]
[1754785027987,0.21691433,803.21,802.43,2.77883695]
[1754785028384,0.21691433,803.21,802.44,2.77883695]
[1754785028887,0.21691433,803.21,802.4,2.77883695]
[1754785030087,0.21691433,803.21,802.44,2.77883695]
[1754785030483,0.21691433,803.21,802.46,2.77883695]
[1754785030987,0.21691433,803.21,802.45,2.77883695]
[1754785032590,0.21691433,803.21,802.46,2.77883695]
[1754785034085,0.21691433,803.21,802.44,2.77883695]
[1754785036286,0.21691433,803.21,802.46,2.77883695]
[1754785037792,0.21691433,803.21,802.51,2.77883695]
[1754785038789,0.21691433,803.21,802.55,2.77883695]
[1754785040293,0.21691433,803.21,802.54,2.77883695]
[1754785040994,0.21691433,803.21,802.58,2.77883695]
[1754785042490,0.21691433,803.21,802.49,2.77883695]
[1754785043991,0.21691433,803.21,802.51,2.77883695]
[1754785045096,0.21691433,803.21,802.53,2.77883695]
[1754785045692,0.21691433,803.21,802.55,2.77883695]
[1754785046097,0.21691433,803.21,802.48,2.77883695]
[1754785046697,0.21691433,803.21,802.39,2.77883695]
[1754785049799,0.21691433,803.21,802.38,2.77883695]
[1754785050999,0.21691433,803.21,802.29,2.77883695]
[1754785052399,0.21691433,803.21,802.32,2.77883695]
[1754785052899,0.21691433,803.21,801.95,2.77883695]
[1754785054104,0.21691433,803.21,801.96,2.77883695]
[1754785055997,0.21691433,803.21,801.98,2.77883695]
[1754785061304,0.21691433,803.21,802.02,2.77883695]
[1754785062909,0.21691433,803.21,802.44,2.77883695]
[1754785063310,0.21691433,803.21,802.46,2.77883695]
[1754785065608,0.21691433,803.21,802.47,2.77883695]
[1754785066112,0.21691433,803.21,802.38,2.77883695]
[1754785067009,0.21691433,803.21,802.58,2.77883695]
[1754785067613,0.21691433,803.21,802.51,2.77883695]
[1754785068616,0.21691433,803.21,802.54,2.77883695]
[1754785069613,0.21691433,803.21,802.55,2.77883695]
[1754785070613,0.21691433,803.21,802.56,2.77883695]
[1754785071316,0.21691433,803.21,802.49,2.77883695]
[1754785071717,0.21691433,803.21,802.5,2.77883695]
[1754785072716,0.21691433,803.21,802.49,2.77883695]
[1754785073816,0.21691433,803.21,802.52,2.77883695]
[1754785075519,0.21691433,803.21,802.53,2.77883695]
[1754785075819,0.21691433,803.21,802.58,2.77883695]
[1754785076421,0.21691433,803.21,802.37,2.77883695]
[1754785077022,0.21691433,803.21,801.96,3.90467757]
[1754785077023,0.21691433,803.21,802.38,2.77883695]
[1754785077423,0.21691433,803.21,802.41,2.77883695]
[1754785078022,0.21691433,803.21,802.46,2.77883695]
[1754785079523,0.21691433,803.21,802.3,2.77883695]
[1754785081027,0.21691433,803.21,802.34,2.77883695]
[1754785082822,0.21691433,803.21,802.18,2.77883695]
[1754785083725,0.21691433,803.21,802.17,2.77883695]
[1754785084226,0.21691433,803.21,802.18,2.77883695]
[1754785084624,0.21691433,803.21,802.17,2.77883695]
[1754785085329,0.21691433,803.21,802.21,2.77883695]
[1754785085829,0.21691433,803.21,802.22,2.77883695]
[1754785086326,0.21691433,803.21,802.25,2.77883695]
[1754785086829,0.21691433,803.21,802.26,2.77883695]
[1754785089336,0.21691433,803.21,802.36,2.77883695]
[1754785091537,0.21691433,803.21,802.28,2.77883695]
[1754785092438,0.21691433,803.21,802.43,2.77883695]
[1754785093039,0.21691433,803.21,802.45,2.77883695]
[1754785094042,0.21691433,803.21,802.51,2.77883695]
[1754785094540,0.21691433,803.21,802.53,2.77883695]
[1754785095740,0.05722698,803.21,802.51,2.77883695]
[1754785095936,0.5,803.72,802.51,2.77883695]
[1754785096141,0.5,803.72,802.53,2.77883695]
[1754785096738,0.5,803.72,802.54,2.77883695]
[1754785097142,0.5,803.72,802.53,2.77883695]
[1754785098943,0.21685486,803.43,802.53,2.77883695]
[1754785099142,0.21685486,803.43,802.55,2.77883695]
[1754785099742,0.21685486,803.43,802.56,2.77883695]
[1754785100738,0.21685486,803.43,802.47,2.77883695]
[1754785101340,0.21685486,803.43,802.55,2.77883695]
[1754785105442,0.21685486,803.43,802.56,2.77883695]
[1754785105945,0.21685486,803.43,802.65,2.77883695]
[1754785106449,0.21685486,803.43,802.64,2.77883695]
[1754785108345,0.05756152,803.43,802.64,2.77883695]
[1754785108546,0.5,803.84,802.95,2.77883695]
[1754785109646,0.5,803.84,802.94,2.77883695]
[1754785111544,0.21679069,803.62,802.94,2.77883695]
[1754785112240,0.21679069,803.62,802.93,2.77883695]
[1754785113343,0.21679069,803.62,802.97,2.77883695]
[1754785113743,0.21679069,803.62,803.01,2.77883695]
[1754785114246,0.21679069,803.62,802.89,2.77883695]
[1754785116447,0.21679069,803.62,802.79,2.77883695]
[1754785118044,0.21679069,803.62,802.74,2.77883695]
[1754785118543,0.21679069,803.62,802.72,2.77883695]
[1754785118947,0.21679069,803.62,802.7,2.77883695]
[1754785119547,0.21679069,803.62,802.69,2.77883695]
[1754785120648,0.21679069,803.62,802.67,2.77883695]
[1754785121148,0.21679069,803.62,802.55,2.77883695]
[1754785121541,0.21679069,803.62,802.53,2.77883695]
[1754785122444,0.71679069,803.62,802.53,2.77883695]
[1754785122745,0.71679069,803.62,802.49,2.77883695]
[1754785126347,0.71679069,803.62,802.42,2.77883695]
[1754785127448,0.71679069,803.62,802.36,2.77883695]
[1754785127949,0.71679069,803.62,802.42,2.77883695]
[1754785131149,0.71679069,803.62,802.5,2.77883695]
[1754785131552,0.71679069,803.62,802.51,2.77883695]
[1754785132152,0.71679069,803.62,802.52,2.77883695]
[1754785133655,0.71679069,803.62,802.53,2.77883695]
[1754785135053,0.21679069,803.62,802.53,2.77883695]
[1754785135253,0.21679069,803.62,802.56,2.77883695]
[1754785136356,0.21679069,803.62,802.54,2.77883695]
[1754785136753,0.21679069,803.62,802.55,2.77883695]
[1754785137154,0.21679069,803.62,802.64,2.77883695]
[1754785138352,0.21679069,803.62,802.65,2.77883695]
[1754785139752,0.21679069,803.62,802.66,2.77883695]
[1754785141462,0.21679069,803.62,802.55,2.77883695]
[1754785141858,0.21679069,803.62,802.56,2.77883695]
[1754785142361,0.21679069,803.62,802.59,2.77883695]
[1754785146064,0.21679069,803.62,802.62,2.77883695]
[1754785147160,0.21679069,803.62,802.63,2.77883695]
[1754785147664,0.21679069,803.62,802.58,2.77883695]
[1754785148164,0.21679069,803.62,802.59,2.77883695]
[1754785148664,0.21679069,803.62,802.61,2.77883695]
[1754785150261,0.21679069,803.62,802.57,2.77883695]
[1754785150765,0.21679069,803.62,802.66,2.77883695]
[1754785151761,0.21679069,803.62,802.67,2.77883695]
[1754785153861,0.21679069,803.62,802.63,2.77883695]
[1754785155465,0.21679069,803.62,802.66,2.77883695]
[1754785155966,0.21679069,803.62,802.68,2.77883695]
[1754785156669,0.21679069,803.62,802.69,2.77883695]
[1754785158072,0.21679069,803.62,802.7,2.77883695]
[1754785160070,0.21679069,803.62,802.73,2.77883695]
[1754785164376,0.21679069,803.62,802.78,2.77883695]
[1754785165873,0.21679069,803.62,803.05,2.77883695]
[1754785166078,0.21679069,803.62,802.79,3.90467757]
[1754785166875,0.21679069,803.62,802.8,3.90467757]
[1754785167879,0.21679069,803.62,802.73,3.90467757]
[1754785168879,0.21679069,803.62,802.74,3.90467757]
[1754785170077,0.21679069,803.62,802.32,5.58066277]
[1754785170078,0.21679069,803.62,802.73,3.90467757]
[1754785171177,0.21679069,803.62,802.44,3.90467757]
[1754785173082,0.21679069,803.62,802.46,3.90467757]
[1754785174282,0.21679069,803.62,802.51,3.90467757]
[1754785175078,0.21679069,803.62,802.82,2.7845745]
[1754785175578,0.21679069,803.62,802.83,2.7845745]
[1754785176082,0.21679069,803.62,802.71,2.7845745]
[1754785176578,0.21679069,803.62,802.72,2.7845745]
[1754785177180,0.21679069,803.62,802.76,2.7845745]
[1754785177780,0.21679069,803.62,802.78,2.7845745]
[1754785180886,0.21679069,803.62,802.82,2.7845745]
[1754785181386,0.21679069,803.62,802.71,2.7845745]
[1754785182886,0.21679069,803.62,802.7,2.7845745]
[1754785184385,0.21679069,803.62,802.76,2.7845745]
[1754785185085,0.21679069,803.62,802.47,2.7845745]
[1754785186584,0.21679069,803.62,802.46,2.7845745]
[1754785190690,0.21679069,803.62,802.47,2.7845745]
[1754785191387,0.21679069,803.62,802.43,2.7845745]
[1754785193895,0.21679069,803.62,801.99,1.879]
[1754785193896,0.21679069,803.62,802.42,2.7845745]
[1754785194494,0.21679069,803.62,802.43,2.7845745]
[1754785194895,0.21679069,803.62,802.64,2.7845745]
[1754785195391,0.21679069,803.62,802.44,2.7845745]
[1754785196491,0.21679069,803.62,802.5,2.7845745]
[1754785196895,0.21679069,803.62,802.49,2.7845745]
[1754785198093,0.21679069,803.62,802.51,2.7845745]
[1754785200694,0.21679069,803.62,802.5,2.7845745]
[1754785201095,0.21679069,803.62,802.53,2.7845745]
[1754785201499,0.21679069,803.62,802.66,2.7845745]
[1754785202100,0.21679069,803.62,802.79,2.7845745]
[1754785202602,0.21679069,803.62,802.81,2.7845745]
[1754785203304,0.21679069,803.62,802.79,2.7845745]
[1754785203699,0.21679069,803.62,802.77,2.7845745]
[1754785204603,0.21679069,803.62,802.73,2.7845745]
[1754785206202,0.21679069,803.62,802.6,2.7845745]
[1754785206900,0.21679069,803.62,802.62,2.7845745]
[1754785208804,0.21679069,803.62,802.63,2.7845745]
[1754785209408,0.21679069,803.62,802.69,2.7845745]
[1754785210004,0.21679069,803.62,802.67,2.7845745]
[1754785211008,0.21679069,803.62,802.68,2.7845745]
[1754785212009,0.21679069,803.62,802.69,2.7845745]
[1754785212507,0.21679069,803.62,802.68,2.7845745]
[1754785212905,0.21679069,803.62,802.69,2.7845745]
[1754785215611,0.21679069,803.62,802.85,2.7845745]
[1754785216115,0.21679069,803.62,802.76,2.7845745]
[1754785216812,0.21679069,803.62,802.75,2.7845745]
[1754785218118,0.21679069,803.62,802.41,3.90467757]
[1754785218119,0.21679069,803.62,802.77,2.7845745]
[1754785219111,0.21679069,803.62,802.72,2.7845745]
[1754785222415,0.21679069,803.62,802.38,3.90467757]
[1754785222416,0.21679069,803.62,802.73,2.7845745]
[1754785223415,0.21679069,803.62,802.78,2.7845745]
[1754785224421,0.21679069,803.62,802.72,2.7845745]
[1754785224920,0.21679069,803.62,802.73,2.7845745]
[1754785226021,0.21679069,803.62,802.64,2.7845745]
[1754785229121,0.21679069,803.62,802.67,2.7845745]
[1754785230217,0.21679069,803.62,802.68,2.7845745]
[1754785230717,0.21679069,803.62,802.71,2.7845745]
[1754785233221,0.21679069,803.62,802.72,2.7845745]
[1754785233722,0.21679069,803.62,802.73,2.7845745]
[1754785234326,0.21679069,803.62,802.77,2.7845745]
[1754785235523,0.21679069,803.62,802.78,2.7845745]
[1754785235925,0.21679069,803.62,803.02,2.7845745]
[1754785236427,0.21679069,803.62,802.83,2.7845745]
[1754785238127,0.21679069,803.62,802.79,2.7845745]
[1754785239631,0.21679069,803.62,802.81,2.7845745]
[1754785240626,0.21679069,803.62,802.82,2.7845745]
[1754785242030,0.21679069,803.62,802.85,2.7845745]
[1754785242730,0.21679069,803.62,802.84,2.7845745]
[1754785243231,0.21679069,803.62,802.85,2.7845745]
[1754785245835,0.21679069,803.62,802.98,2.7845745]
[1754785246237,0.21679069,803.62,802.84,2.7845745]
[1754785247938,0.21679069,803.62,802.87,2.7845745]
[1754785251044,0.21679069,803.62,802.67,2.7845745]
[1754785252144,0.21679069,803.62,802.68,2.7845745]
[1754785252641,0.21679069,803.62,802.65,2.7845745]
[1754785253141,0.21679069,803.62,802.66,2.7845745]
[1754785256346,0.21679069,803.62,802.72,2.7845745]
[1754785257345,0.21679069,803.62,802.7,2.7845745]
[1754785259344,0.21679069,803.62,802.69,2.7845745]
[1754785260949,0.21679069,803.62,802.85,2.7845745]
[1754785261449,0.21679069,803.62,802.76,2.7845745]
[1754785261944,0.21679069,803.62,802.81,2.7845745]
[1754785262549,0.21679069,803.62,802.91,2.7845745]
[1754785263452,0.21679069,803.62,802.76,2.7845745]
[1754785264149,0.21679069,803.62,802.78,2.7845745]
[1754785265645,0.21679069,803.62,802.81,2.7845745]
[1754785266149,0.21679069,803.62,802.49,3.90467757]
[1754785266150,0.21679069,803.62,802.61,2.7845745]
[1754785266749,0.21679069,803.62,802.62,2.7845745]
[1754785267047,0.21679069,803.62,802.58,2.7845745]
[1754785271356,0.21679069,803.62,802.53,2.7845745]
[1754785271849,0.21679069,803.62,802.54,2.7845745]
[1754785272353,0.21679069,803.62,802.53,2.7845745]
[1754785272948,0.21679069,803.62,802.54,2.7845745]
[1754785275355,0.51279069,803.62,802.68,2.7845745]
[1754785276051,0.51279069,803.62,802.16,3.90467757]
[1754785276052,0.51279069,803.62,802.67,2.7845745]
[1754785276656,0.51279069,803.62,802.66,2.7845745]
[1754785277257,0.51279069,803.62,802.67,2.7845745]
[1754785277556,0.51279069,803.62,802.6,2.7845745]
[1754785278759,0.51279069,803.62,802.59,2.7845745]
[1754785278961,0.5,803.39,802.25,3.90467757]
[1754785279357,0.5,803.39,801.89,1.979]
[1754785284970,0.5,803.44,801.89,1.979]
[1754785286670,0.5,803.44,801.92,2.7845745]
[1754785287164,0.5,803.44,801.93,2.7845745]
[1754785287868,0.5,803.44,801.91,2.7845745]
[1754785288769,0.5,803.44,801.92,2.7845745]
[1754785289767,0.5,803.44,802.13,2.7845745]
[1754785290267,0.5,803.44,802.11,2.7845745]
[1754785290872,0.5,803.44,801.89,1.979]
[1754785290873,0.5,803.44,802.06,2.7845745]
[1754785291369,0.5,803.44,802.04,2.7845745]
[1754785292371,0.5,803.44,802.03,2.7845745]
[1754785292874,0.5,803.44,802.04,2.7845745]
[1754785293574,0.5,803.44,802.03,2.7845745]
[1754785294476,0.5,803.44,802.02,2.7845745]
[1754785296070,0.5,803.44,802.01,2.7845745]
[1754785297174,0.5,803.44,801.89,4.7635745]
[1754785298176,0.5,803.44,801.89,1.979]
[1754785299778,0.5,803.44,801.97,2.7845745]
[1754785300277,0.5,803.44,801.99,2.7845745]
[1754785301180,0.5,803.44,801.96,2.7845745]
[1754785302274,0.5,803.44,801.89,1.979]
[1754785302275,0.5,803.44,801.95,2.7845745]
[1754785302774,0.5,803.44,801.96,2.7845745]
[1754785303276,0.5,803.44,801.95,2.7845745]
[1754785306478,0.5,803.44,801.96,2.7845745]
[1754785306978,0.5,803.44,802.11,2.7845745]
[1754785307677,0.5,803.44,802.1,2.7845745]
[1754785308479,0.5,803.44,802.11,2.7845745]
[1754785309475,0.5,803.47,802.11,2.7845745]
[1754785309678,0.5,803.47,802.12,2.7845745]
[1754785310774,0.5,803.47,802.13,2.7845745]
[1754785311080,0.5,803.47,802.14,2.7845745]
[1754785311581,0.5,803.47,802.15,2.7845745]
[1754785311979,0.21692109,803.14,802.15,2.7845745]
[1754785312876,0.21692109,803.14,802.18,2.7845745]
[1754785313176,0.21692109,803.14,802.19,2.7845745]
[1754785313681,0.21692109,803.14,802.21,2.7845745]
[1754785314677,0.21692109,803.14,802.26,2.7845745]
[1754785315682,0.21692109,803.14,802.28,2.7845745]